fUST/lending_fUST_20250830
["ID","MTS","AMOUNT","RATE_DAILY","PERIOD"]
[382043893,1756486099237,-502.53706508,0.00044383,120]
[382043894,1756486099262,-480.0,0.00044383,120]
[382043895,1756486099289,-480.0,0.00044383,120]
[382043896,1756486099317,-480.0,0.00044383,7]
[382043897,1756486099343,-480.0,0.00044383,120]
[382043898,1756486099370,-480.0,0.00044383,120]
[382043899,1756486099397,-480.0,0.00044383,120]
[382043900,1756486099423,-154.02394166,0.00044383,120]
[382043901,1756486099452,-480.0,0.00044383,120]
[382043902,1756486099479,-480.0,0.00044383,120]
[382043903,1756486099506,-480.0,0.00044383,120]
[382043904,1756486099532,-480.0,0.00044383,120]
[382043905,1756486099558,-480.0,0.00044383,120]
[382043906,1756486099583,-480.0,0.00044383,120]
[382043907,1756486099608,-554.3980148,0.00044383,120]
[382043908,1756486099634,-480.0,0.00044383,120]
[382043909,1756486099659,-480.0,0.00044383,120]
[382043910,1756486099686,-480.0,0.00044383,120]
[382043911,1756486099714,-480.0,0.00044383,120]
[382043912,1756486099740,-480.0,0.00044383,120]
[382043913,1756486099844,-575.47,0.00044383,120]
[382043914,1756486099870,-480.0,0.00044383,120]
[382043915,1756486099896,-480.0,0.00044383,120]
[382043916,1756486099925,-480.0,0.00044383,120]
[382043917,1756486099952,-480.0,0.00044383,120]
[382043918,1756486099978,-480.0,0.00044383,120]
[382043919,1756486100004,-480.0,0.00044383,120]
[382043920,1756486100030,-480.0,0.00044383,120]
[382043921,1756486100056,-480.0,0.00044383,120]
[382043922,1756486100081,-480.0,0.00044383,120]
[382043923,1756486100107,-360.79766305,0.00044383,120]
[382043924,1756486100133,-480.0,0.00044383,120]
[382043925,1756486100159,-568.85595606,0.00044383,120]
[382043926,1756486100186,-480.0,0.00044383,120]
[382043927,1756486100212,-480.0,0.00044383,120]
[382043928,1756486100238,-480.0,0.00044383,120]
[382043929,1756486100263,-480.0,0.00044383,120]
[382043930,1756486100290,-480.0,0.00044383,120]
[382043931,1756486100315,-480.0,0.00044383,120]
[382043932,1756486100341,-480.0,0.00044383,120]
[382043933,1756486100367,-480.0,0.00044383,120]
[382043934,1756486100394,-480.0,0.00044383,120]
[382043935,1756486100419,-480.0,0.00044383,120]
[382043936,1756486100446,-480.0,0.00044383,120]
[382043937,1756486100472,-480.0,0.00044383,120]
[382043938,1756486100498,-480.0,0.00044383,120]
[382043939,1756486100524,-480.0,0.00044383,120]
[382043940,1756486100549,-480.0,0.00044383,120]
[382043941,1756486100575,-480.0,0.00044383,120]
[382043942,1756486100601,-480.0,0.00044383,120]
[382043943,1756486100629,-480.0,0.00044383,120]
[382043944,1756486100654,-480.0,0.00044383,120]
[382043945,1756486100680,-480.0,0.00044383,120]
[382043946,1756486100706,-480.0,0.00044383,120]
[382043947,1756486100731,-480.0,0.00044383,120]
[382043948,1756486100760,-480.0,0.00044383,120]
[382043949,1756486100786,-480.0,0.00044383,120]
[382043950,1756486100814,-196.71760109,0.00044383,7]
[382043951,1756486100842,-480.0,0.00044383,120]
[382043952,1756486100867,-480.0,0.00044383,120]
[382043953,1756486100894,-480.0,0.00044383,120]
[382043954,1756486100924,-480.0,0.00044383,120]
[382043955,1756486100949,-480.0,0.00044383,120]
[382043956,1756486100975,-480.0,0.00044383,120]
[382043957,1756486101002,-480.0,0.00044383,120]
[382043958,1756486101027,-480.0,0.00044383,120]
[382043959,1756486101053,-480.0,0.00044383,120]
[382043960,1756486101079,-480.0,0.00044383,120]
[382043961,1756486101105,-480.0,0.00044383,120]
[382043962,1756486101131,-480.0,0.00044383,120]
[382043963,1756486101234,-480.0,0.00044383,120]
[382043964,1756486101261,-480.0,0.00044383,120]
[382043965,1756486101288,-480.0,0.00044383,120]
[382043966,1756486101313,-480.0,0.00044383,120]
[382043967,1756486101339,-555.54315417,0.00044383,120]
[382043968,1756486101365,-480.0,0.00044383,120]
[382043969,1756486101391,-481.97480837,0.00044383,120]
[382043970,1756486101417,-480.0,0.00044383,120]
[382043971,1756486101444,-480.0,0.00044383,120]
[382043972,1756486101471,-480.0,0.00044383,120]
[382043973,1756486101497,-480.0,0.00044383,120]
[382043974,1756486101523,-480.0,0.00044383,120]
[382043975,1756486101549,-480.0,0.00044383,120]
[382043976,1756486101574,-480.0,0.00044383,120]
[382043977,1756486101601,-480.0,0.00044383,120]
[382043978,1756486101630,-500.0,0.00044383,120]
[382043979,1756486101655,-480.0,0.00044383,120]
[382043980,1756486101681,-480.0,0.00044383,120]
[382043981,1756486101706,-480.0,0.00044383,120]
[382043982,1756486101730,-480.0,0.00044383,120]
[382043983,1756486101757,-480.0,0.00044383,120]
[382043984,1756486101782,-480.0,0.00044383,120]
[382043985,1756486101808,-480.0,0.00044383,120]
[382043986,1756486101833,-480.0,0.00044383,120]
[382043987,1756486101859,-480.0,0.00044383,120]
[382043988,1756486101885,-480.0,0.00044383,120]
[382043989,1756486101912,-480.0,0.00044383,120]
[382043990,1756486101939,-175.60484771,0.00044383,120]
[382043991,1756486101967,-480.0,0.00044383,120]
[382043992,1756486101995,-480.0,0.00044383,120]
[382043993,1756486102021,-480.0,0.00044383,120]
[382043994,1756486102047,-480.0,0.00044383,120]
[382043995,1756486102073,-480.0,0.00044383,120]
[382043996,1756486102099,-480.0,0.00044383,120]
[382043997,1756486102124,-480.0,0.00044383,120]
[382043998,1756486102150,-480.0,0.00044383,120]
[382043999,1756486102178,-543.88,0.00044383,120]
[382044000,1756486102205,-480.0,0.00044383,120]
[382044001,1756486102230,-480.0,0.00044383,120]
[382044002,1756486102255,-480.0,0.00044383,120]
[382044003,1756486102281,-480.0,0.00044383,120]
[382044004,1756486102307,-480.0,0.00044383,120]
[382044005,1756486102332,-480.0,0.00044383,120]
[382044006,1756486102369,-480.0,0.00044383,120]
[382044007,1756486102607,-480.0,0.00044383,120]
[382044008,1756486102635,-480.0,0.00044383,120]
[382044009,1756486102672,-480.0,0.00044383,120]
[382044010,1756486102703,-480.0,0.00044383,120]
[382044011,1756486102807,-480.0,0.00044383,120]
[382044012,1756486102834,-480.0,0.00044383,120]
[382044013,1756486102860,-480.0,0.00044383,120]
[382044014,1756486102886,-344.6034292,0.00044383,120]
[382044015,1756486102913,-480.0,0.00044383,120]
[382044016,1756486102939,-480.0,0.00044383,120]
[382044017,1756486102967,-700.19,0.00044383,120]
[382044018,1756486102995,-480.0,0.00044383,120]
[382044019,1756486103021,-480.0,0.00044383,120]
[382044020,1756486103046,-480.0,0.00044383,120]
[382044021,1756486103073,-480.0,0.00044383,120]
[382044022,1756486103100,-480.0,0.00044383,120]
[382044023,1756486103125,-480.0,0.00044383,120]
[382044024,1756486103152,-480.0,0.00044383,120]
[382044025,1756486103177,-480.0,0.00044383,120]
[382044026,1756486103205,-480.0,0.00044383,120]
[382044027,1756486103230,-480.0,0.00044383,30]
[382044028,1756486103257,-882.97,0.00044383,120]
[382044029,1756486103281,-480.0,0.00044383,120]
[382044030,1756486103307,-480.0,0.00044383,120]
[382044031,1756486103336,-480.0,0.00044383,120]
[382044032,1756486103362,-480.0,0.00044383,120]
[382044033,1756486103387,-480.0,0.00044383,120]
[382044034,1756486103415,-480.0,0.00044383,120]
[382044035,1756486103442,-480.0,0.00044383,120]
[382044036,1756486103468,-480.0,0.00044383,120]
[382044037,1756486103497,-480.0,0.00044383,120]
[382044038,1756486103523,-480.0,0.00044383,120]
[382044039,1756486103549,-480.0,0.00044383,20]
[382044040,1756486103575,-480.0,0.00044383,120]
[382044041,1756486103602,-480.0,0.00044383,120]
[382044042,1756486103630,-691.64,0.00044383,120]
[382044043,1756486103658,-480.0,0.00044383,120]
[382044044,1756486103688,-480.0,0.00044383,120]
[382044045,1756486103717,-480.0,0.00044383,120]
[382044046,1756486103744,-480.0,0.00044383,120]
[382044047,1756486103772,-480.0,0.00044383,120]
[382044048,1756486103800,-2299.21,0.00044383,120]
[382044049,1756486103827,-480.0,0.00044383,120]
[382044050,1756486103854,-480.0,0.00044383,120]
[382044051,1756486103880,-480.0,0.00044383,120]
[382044052,1756486103911,-480.0,0.00044383,120]
[382044053,1756486103940,-936.29,0.00044383,21]
[382044054,1756486103969,-480.0,0.00044383,120]
[382044055,1756486103998,-480.0,0.00044383,120]
[382044056,1756486104030,-480.0,0.00044383,120]
[382044057,1756486104059,-480.0,0.00044383,120]
[382044058,1756486104160,-480.0,0.00044383,120]
[382044059,1756486104189,-480.0,0.00044383,120]
[382044060,1756486104216,-480.0,0.00044383,120]
[382044061,1756486104243,-1228.77,0.00044383,120]
[382044062,1756486104271,-480.0,0.00044383,120]
[382044063,1756486104297,-480.0,0.00044383,120]
[382044064,1756486104327,-480.0,0.00044383,120]
[382044065,1756486104355,-207.52803627,0.00044383,120]
[382044066,1756486104383,-480.0,0.00044383,120]
[382044067,1756486104411,-480.0,0.00044383,120]
[382044068,1756486104439,-480.0,0.00044383,120]
[382044069,1756486104466,-480.0,0.00044383,30]
[382044070,1756486104493,-480.0,0.00044383,120]
[382044071,1756486104520,-480.0,0.00044383,120]
[382044072,1756486104549,-480.0,0.00044383,120]
[382044073,1756486104576,-480.0,0.00044383,120]
[382044074,1756486104603,-982.03,0.00044383,120]
[382044075,1756486104632,-285.3223314,0.00044383,120]
[382044076,1756486104659,-480.0,0.00044383,120]
[382044077,1756486104687,-480.0,0.00044383,120]
[382044078,1756486104715,-480.0,0.00044383,120]
[382044079,1756486104741,-480.0,0.00044383,120]
[382044080,1756486104768,-480.0,0.00044383,120]
[382044081,1756486104797,-480.0,0.00044383,120]
[382044082,1756486104823,-480.0,0.00044383,120]
[382044083,1756486104850,-480.0,0.00044383,120]
[382044084,1756486104877,-480.0,0.00044383,120]
[382044085,1756486104908,-480.0,0.00044383,120]
[382044086,1756486104937,-482.39632854,0.00044383,120]
[382044087,1756486104969,-1085.88,0.00044383,120]
[382044088,1756486105005,-480.0,0.00044383,120]
[382044089,1756486105034,-480.0,0.00044383,120]
[382044090,1756486105062,-480.0,0.00044383,120]
[382044091,1756486105087,-480.0,0.00044383,120]
[382044092,1756486105111,-480.0,0.00044383,120]
[382044093,1756486105135,-480.0,0.00044383,120]
[382044094,1756486105161,-480.0,0.00044383,120]
[382044095,1756486105186,-593.69,0.00044383,120]
[382044096,1756486105211,-480.0,0.00044383,120]
[382044097,1756486105236,-480.0,0.00044383,120]
[382044098,1756486105263,-679.89,0.00044383,120]
[382044099,1756486105290,-480.0,0.00044383,120]
[382044100,1756486105317,-480.0,0.00044383,120]
[382044101,1756486105342,-480.0,0.00044383,120]
[382044102,1756486105367,-480.0,0.00044383,120]
[382044103,1756486105472,-480.0,0.00044383,120]
[382044104,1756486105503,-480.0,0.00044383,120]
[382044105,1756486105529,-480.0,0.00044383,120]
[382044106,1756486105554,-480.0,0.00044383,120]
[382044107,1756486105581,-480.0,0.00044383,120]
[382044108,1756486105609,-480.0,0.00044383,120]
[382044109,1756486105636,-464.82623605,0.00044383,120]
[382044110,1756486105663,-480.0,0.00044383,120]
[382044111,1756486105692,-480.0,0.00044383,120]
[382044112,1756486105722,-480.0,0.00044383,120]
[382044113,1756486105748,-480.0,0.00044383,120]
[382044114,1756486105775,-625.75406402,0.00044383,120]
[382044115,1756486105803,-480.0,0.00044383,120]
[382044116,1756486105830,-480.0,0.00044383,120]
[382044117,1756486105856,-480.0,0.00044383,120]
[382044118,1756486105882,-480.0,0.00044383,120]
[382044119,1756486105910,-482.47049226,0.00044383,120]
[382044120,1756486105939,-480.0,0.00044383,120]
[382044121,1756486105970,-480.0,0.00044383,120]
[382044122,1756486105997,-480.0,0.00044383,120]
[382044123,1756486106023,-480.0,0.00044383,120]
[382044124,1756486106051,-480.0,0.00044383,120]
[382044125,1756486106079,-480.0,0.00044383,120]
[382044126,1756486106108,-637.06,0.00044383,120]
[382044127,1756486106137,-480.0,0.00044383,120]
[382044128,1756486106165,-480.0,0.00044383,120]
[382044129,1756486106196,-480.0,0.00044383,120]
[382044130,1756486106225,-2543.6,0.00044383,120]
[382044131,1756486106255,-480.0,0.00044383,120]
[382044132,1756486106283,-480.0,0.00044383,120]
[382044133,1756486106317,-480.0,0.00044383,120]
[382044134,1756486106346,-480.0,0.00044383,120]
[382044135,1756486106390,-480.0,0.00044383,120]
[382044136,1756486106423,-480.0,0.00044383,120]
[382044137,1756486106452,-480.0,0.00044383,120]
[382044138,1756486106481,-480.0,0.00044383,120]
[382044139,1756486106508,-480.0,0.00044383,120]
[382044140,1756486106536,-480.0,0.00044383,120]
[382044141,1756486106563,-480.0,0.00044383,120]
[382044142,1756486106590,-480.0,0.00044383,120]
[382044143,1756486106616,-480.0,0.00044383,120]
[382044144,1756486106644,-480.0,0.00044383,120]
[382044145,1756486106673,-480.0,0.00044383,120]
[382044146,1756486106702,-480.0,0.00044383,120]
[382044147,1756486106811,-480.0,0.00044383,120]
[382044148,1756486106841,-480.0,0.00044383,120]
[382044149,1756486106868,-480.0,0.00044383,120]
[382044150,1756486106898,-480.0,0.00044383,120]
[382044151,1756486106931,-1910.92,0.00044383,120]
[382044152,1756486106960,-480.0,0.00044383,120]
[382044153,1756486106988,-480.0,0.00044383,120]
[382044154,1756486107014,-480.0,0.00044383,120]
[382044155,1756486107039,-480.0,0.00044383,120]
[382044156,1756486107066,-500.0,0.00044383,14]
[382044157,1756486107093,-480.0,0.00044383,120]
[382044158,1756486107119,-459.79566534,0.00044383,120]
[382044159,1756486107146,-480.0,0.00044383,120]
[382044160,1756486107174,-1453.06,0.00044383,120]
[382044161,1756486107200,-480.0,0.00044383,120]
[382044162,1756486107227,-480.0,0.00044383,120]
[382044163,1756486107254,-480.0,0.00044383,120]
[382044164,1756486107280,-480.0,0.00044383,120]
[382044165,1756486107305,-480.0,0.00044383,120]
[382044166,1756486107331,-480.0,0.00044383,120]
[382044167,1756486107357,-480.0,0.00044383,120]
[382044168,1756486107384,-480.0,0.00044383,120]
[382044169,1756486107410,-480.0,0.00044383,120]
[382044170,1756486107438,-2619.13,0.00044383,120]
[382044171,1756486107466,-480.0,0.00044383,120]
[382044172,1756486107494,-885.37,0.00044383,120]
[382044173,1756486107520,-480.0,0.00044383,120]
[382044174,1756486107546,-480.0,0.00044383,120]
[382044175,1756486107573,-480.0,0.00044383,120]
[382044176,1756486107599,-480.0,0.00044383,120]
[382044177,1756486107626,-480.0,0.00044383,120]
[382044178,1756486107653,-480.0,0.00044383,120]
[382044179,1756486107679,-480.0,0.00044383,120]
[382044180,1756486107707,-480.0,0.00044383,120]
[382044181,1756486107732,-480.0,0.00044383,120]
[382044182,1756486107760,-480.0,0.00044383,120]
[382044183,1756486107791,-480.0,0.00044383,120]
[382044184,1756486107817,-1457.78,0.00044383,120]
[382044185,1756486107843,-480.0,0.00044383,120]
[382044186,1756486107869,-480.0,0.00044383,120]
[382044187,1756486107894,-480.0,0.00044383,120]
[382044188,1756486107925,-480.0,0.00044383,120]
[382044189,1756486108023,-480.0,0.00044383,120]
[382044190,1756486108052,-480.0,0.00044383,120]
[382044191,1756486108078,-730.53,0.00044383,120]
[382044192,1756486108103,-480.0,0.00044383,120]
[382044193,1756486108129,-480.0,0.00044383,120]
[382044194,1756486108156,-480.0,0.00044383,120]
[382044195,1756486108181,-480.0,0.00044383,120]
[382044196,1756486108208,-480.0,0.00044383,120]
[382044197,1756486108235,-480.0,0.00044383,120]
[382044198,1756486108262,-480.0,0.00044383,120]
[382044199,1756486108292,-480.0,0.00044383,120]
[382044200,1756486108325,-480.0,0.00044383,120]
[382044201,1756486108354,-480.0,0.00044383,120]
[382044202,1756486108381,-480.0,0.00044383,120]
[382044203,1756486108420,-928.21,0.00044383,120]
[382044204,1756486108460,-596.46369372,0.00044383,120]
[382044205,1756486108488,-480.0,0.00044383,120]
[382044206,1756486108515,-480.0,0.00044383,120]
[382044207,1756486108754,-480.0,0.00044383,120]
[382044208,1756486108784,-480.0,0.00044383,120]
[382044209,1756486108812,-480.0,0.00044383,120]
[382044210,1756486108839,-487.91,0.00044383,120]
[382044211,1756486108866,-692.43,0.00044383,120]
[382044212,1756486108892,-480.0,0.00044383,120]
[382044213,1756486108922,-480.0,0.00044383,120]
[382044214,1756486108950,-480.0,0.00044383,120]
[382044215,1756486108975,-417.15472785,0.0004439,30]
[382044216,1756486109001,-1000.0,0.00044421,10]
[382044217,1756486109027,-503.02508542,0.00044421,10]
[382044218,1756486109053,-1001.61147393,0.00044421,10]
[382044219,1756486109078,-1000.0,0.00044421,7]
[382044220,1756486109104,-1000.0,0.00044421,10]
[382044221,1756486109129,-503.27027552,0.00044421,10]
[382044222,1756486109155,-246.5565963,0.00044421,10]
[382044223,1756486109182,-1000.0,0.00044421,10]
[382044224,1756486109208,-1000.0,0.00044421,10]
[382044225,1756486109233,-1000.0,0.00044421,10]
[382044226,1756486109259,-502.87650618,0.00044421,10]
[382044227,1756486109285,-1000.0,0.00044421,10]
[382044228,1756486109310,-1000.0,0.00044421,10]
[382044229,1756486109335,-250.0,0.00044421,10]
[382044230,1756486109432,-503576.75236091,0.00044444,120]
[382044231,1756486136396,170.192338,0.00013699,2]
[382044232,1756486137382,180.797121,0.00015829,2]
[382044235,1756486153092,-154.95386853,0.00028126,2]
[382044513,1756486239865,-3383.20030748,0.00029173,2]
[382044514,1756486239875,-599.91412644,0.000303,2]
[382044515,1756486239885,-208.95521047,0.000304,2]
[382044517,1756486239894,-1200.0,0.0003071,2]
[382044518,1756486239903,-138.30498031,0.00030711,2]
[382044829,1756486242823,-78.99826443,0.00030711,2]
[382044830,1756486242832,-160.0,0.00030711,2]
[382044831,1756486242842,-400.0,0.00030813,2]
[382044832,1756486242851,-232.6790651,0.00030814,2]
[382044834,1756486242860,-845.57753514,0.00030814,2]
[382044836,1756486242869,-160.0,0.00030814,2]
[382044838,1756486242879,-160.0,0.00030814,2]
[382044840,1756486242887,-216.21406313,0.00030814,2]
[382044842,1756486242897,-217.82964,0.00030979,2]
[382044844,1756486242906,-180.797121,0.00031038,2]
[382044846,1756486242915,-529.77114056,0.00031128,2]
[382044848,1756486242924,-160.0,0.00031128,2]
[382044850,1756486242934,-160.0,0.00031128,2]
[382044851,1756486242945,-170.192338,0.00031311,2]
[382044853,1756486242955,-822.0,0.00031468,3]
[382044855,1756486242964,-160.0,0.0003189,2]
[382044857,1756486242973,-866.45372476,0.000319,2]
[382044859,1756486242984,-500.0,0.00031973,5]
[382044861,1756486242993,-222.96,0.0003199,3]
[382044863,1756486243003,-668.89,0.0003199,3]
[382044867,1756486243014,-472.01474351,0.0003199,3]
[382044870,1756486243030,-64.02525649,0.0003199,3]
[382044873,1756486243039,-268.02,0.0003199,3]
[382044876,1756486243048,-215.63753375,0.00032,2]
[382044880,1756486243071,-822.38706278,0.00032,2]
[382044882,1756486243080,-160.0,0.00032,2]
[382044885,1756486243090,-1007.65629494,0.00032521,5]
[382044887,1756486243099,-260.0,0.00032548,2]
[382044889,1756486243109,-360.0,0.00033096,2]
[382044891,1756486243118,-109.70664228,0.00033181,2]
[382044893,1756486243130,-450.29335772,0.00033181,2]
[382044895,1756486243140,-445.92,0.0003336,3]
[382044897,1756486243149,-1072.08,0.0003336,3]
[382044899,1756486243158,-536.04,0.0003336,3]
[382044901,1756486243167,-460.0,0.00033644,2]
[382044903,1756486243176,-560.0,0.00034192,2]
[382044905,1756486243185,-383.53320881,0.00034605,2]
[382044907,1756486243194,-660.0,0.0003474,2]
[382044909,1756486243204,-866.45372475,0.00034916,2]
[382044911,1756486243213,-760.0,0.00035288,2]
[382044913,1756486243223,-783.0,0.00035732,2]
[382044915,1756486243232,-860.0,0.00035836,2]
[382044917,1756486243241,-960.0,0.00036384,2]
[382044931,1756486243367,-1060.0,0.00036932,2]
[382044933,1756486243379,-757.40614346,0.00037034,2]
[382044935,1756486243389,-1160.0,0.00037479,2]
[382044937,1756486243399,-500.0,0.00037519,15]
[382044939,1756486243408,-500.0,0.00037519,15]
[382044941,1756486243418,-500.0,0.00037519,7]
[382044943,1756486243427,-199.78820298,0.00037519,15]
[382044945,1756486243437,-635.41913685,0.00037519,7]
[382044947,1756486243446,-500.0,0.00037519,2]
[382044949,1756486243456,-500.0,0.00037519,2]
[382044951,1756486243465,-13609.0092642,0.0003752,2]
[382044953,1756486243475,-2153.5934932,0.0003752,2]
[382044955,1756486243485,-500.0,0.000376,5]
[382044957,1756486243494,-500.0,0.000376,5]
[382044959,1756486243504,-500.0,0.000376,5]
[382044961,1756486243513,-500.0,0.000376,5]
[382044963,1756486243523,-866.45372475,0.00037932,2]
[382044965,1756486243532,-1260.0,0.00038027,2]
[382044967,1756486243541,-1000.0,0.00038148,5]
[382044969,1756486243551,-1000.0,0.00038148,5]
[382044971,1756486243561,-1000.0,0.00038148,5]
[382044973,1756486243571,-1000.0,0.00038148,5]
[382044975,1756486243581,-1097.0,0.00038479,5]
[382044977,1756486243590,-1360.0,0.00038575,2]
[382044979,1756486243599,-1500.0,0.00038696,5]
[382044981,1756486243609,-1500.0,0.00038696,5]
[382044983,1756486243618,-1500.0,0.00038696,5]
[382044985,1756486243627,-340.0,0.00039123,2]
[382044987,1756486243637,-2000.0,0.00039244,5]
[382044989,1756486243647,-2000.0,0.00039244,5]
[382044991,1756486243656,-1500.0,0.00039244,5]
[382044993,1756486243665,-484.83829987,0.00039792,5]
[382044994,1756486243674,-604.33611123,0.00039792,5]
[382044996,1756486243684,-866.45372475,0.00040947,2]
[382044998,1756486243693,-1201.0,0.00041437,5]
[382045000,1756486243702,-3036.5804165,0.00042299,2]
[382045002,1756486243713,-2160.531,0.00043093,2]
[382045005,1756486243723,-677.5526746,0.00043366,2]
[382045007,1756486243732,-156.05,0.00043725,10]
[382045009,1756486243741,-220.79227193,0.00043734,31]
[382045011,1756486243750,-5019.76922494,0.00043735,2]
[382048980,1756486323583,629.0,0.00027397,120]
[382048983,1756486352641,198.945066,0.00025246,2]
[382048984,1756486353029,198.945066,0.00025507,2]
[382049026,1756487040171,170.192338,0.00013699,2]
[382049037,1756487146133,-263.38732126,0.00030786,2]
[382049038,1756487146154,-1259.76,0.00030819,60]
[382049039,1756487146176,-527.92993853,0.00030886,2]
[382049040,1756487228091,-672.07006147,0.00030886,2]
[382049041,1756487228111,-3914.56,0.00030887,60]
[382049042,1756487228130,-210.709857,0.00035158,2]
[382049043,1756487228150,-300.0,0.00035258,3]
[382049044,1756487228169,-400.0,0.00035258,2]
[382049045,1756487228192,-1600.0,0.00035258,3]
[382049046,1756487228212,-347.0,0.00035259,3]
[382049047,1756487228236,-300.0,0.00035259,3]
[382049048,1756487228258,-300.0,0.00035259,3]
[382049049,1756487228277,-210.70985698,0.00036104,2]
[382049050,1756487228298,-217.82964,0.00036352,2]
[382049051,1756487228318,-160.0,0.00036517,2]
[382049052,1756487228337,-216.21406313,0.00036522,2]
[382049053,1756487228357,-210.70985698,0.0003705,2]
[382049054,1756487228378,-4796.15935083,0.00037174,2]
[382049055,1756487231090,-487.99146563,0.00037174,2]
[382049056,1756487238100,-2302.43757098,0.00037174,2]
[382049057,1756487246089,-371.23728096,0.00037174,2]
[382049115,1756487432206,-529.77114056,0.00037162,2]
[382049117,1756487432216,-417.15472785,0.00037167,2]
[382049119,1756487432226,-210.70985698,0.00038256,2]
[382049121,1756487432235,-216.21406313,0.0003835,2]
[382049123,1756487432245,-170.192338,0.00038356,2]
[382049125,1756487432254,-2662.1921955,0.00038778,2]
[382049127,1756487432263,-680.3033226,0.000396,2]
[382049129,1756487432276,-161.0,0.00041,90]
[382049131,1756487432289,-500.0,0.00042354,30]
[382049133,1756487432299,-321.65052339,0.00042387,2]
[382049135,1756487432308,-161.0,0.00043151,90]
[382049137,1756487432317,-617.72017786,0.00043349,28]
[382049139,1756487432327,-932.13005428,0.00043399,2]
[382049141,1756487432336,-1532.59870239,0.00043399,2]
[382049143,1756487432345,-604.94323912,0.00043399,2]
[382049144,1756487432355,-2417.35318354,0.00043399,2]
[382049146,1756487432364,-156.04545286,0.00043399,2]
[382049148,1756487432375,-623.55762964,0.00043399,2]
[382049150,1756487432385,-217.30324474,0.00043537,2]
[382049152,1756487432394,-232.6790651,0.00043537,2]
[382049154,1756487432403,-845.57753514,0.00043537,2]
[382049156,1756487432412,-160.0,0.00043548,2]
[382049158,1756487432421,-160.0,0.00043548,2]
[382049160,1756487432432,-160.0,0.00043548,2]
[382049163,1756487432442,-417.15,0.00043573,2]
[382049165,1756487432451,-210.70985698,0.00043625,2]
[382049167,1756487432461,-249.29789602,0.00043673,2]
[382049169,1756487432470,-213.16919257,0.00043673,2]
[382049171,1756487432480,-780.28,0.00043715,10]
[382049173,1756487432490,-213.61566852,0.00043725,23]
[382049175,1756487432499,-232.6790651,0.00043725,3]
[382049176,1756487432508,-425.57542551,0.00043725,3]
[382049178,1756487432518,-160.0,0.00043725,3]
[382049180,1756487432527,-177.27624237,0.00043725,3]
[382049182,1756487432536,-94692.7409653,0.00043725,3]
[382049184,1756487432545,-2282.42903112,0.00043725,3]
[382049186,1756487432554,-519.01229826,0.00043735,2]
[382049188,1756487432564,-36867.16666967,0.00043735,2]
[382049191,1756487432579,-102695.84092394,0.00043735,2]
[382049691,1756487437943,-199.0,0.000409,90]
[382049692,1756487437953,-160.0,0.00043537,2]
[382049693,1756487437962,-4464.32964621,0.00043735,2]
[382049694,1756487438048,-81261.41261706,0.00043735,2]
[382049695,1756487438059,-552.04071615,0.00043735,2]
[382049696,1756487438071,-5252.05896771,0.00043735,2]